lending/lending_fUSD_20250114
["ID","MTS","AMOUNT","RATE_DAILY","PERIOD"]
[348956489,1736891445600,-575.89,0.00011091,2]
[348956491,1736891445610,-500.0,0.00011091,2]
[348956493,1736891445620,-273.55077303,0.00011091,2]
[348956495,1736891445629,-500.0,0.00011091,2]
[348956497,1736891445639,-500.0,0.00011091,2]
[348956499,1736891445648,-654.19,0.00011091,2]
[348956501,1736891445658,-500.0,0.00011091,2]
[348956503,1736891445667,-1923.99,0.00011091,2]
[348956505,1736891445676,-500.0,0.00011091,2]
[348956507,1736891445685,-500.0,0.00011091,2]
[348956509,1736891445694,-500.0,0.00011091,2]
[348956511,1736891445703,-500.0,0.00011091,2]
[348956513,1736891445712,-1054.58,0.00011091,2]
[348956514,1736891445722,-500.0,0.00011091,2]
[348956516,1736891445733,-618.28,0.00011091,2]
[348956518,1736891445744,-500.0,0.00011091,2]
[348956520,1736891445754,-536.29,0.00011091,2]
[348956522,1736891445764,-500.0,0.00011091,2]
[348956525,1736891445774,-500.0,0.00011091,2]
[348956527,1736891445784,-500.0,0.00011091,2]
[348956528,1736891445793,-644.34,0.00011091,2]
[348956529,1736891445802,-500.0,0.00011091,2]
[348956530,1736891445812,-500.0,0.00011092,2]
[348956531,1736891445820,-500.0,0.00011092,2]
[348956532,1736891445829,-500.0,0.00011092,2]
[348956533,1736891445838,-537.48,0.00011092,2]
[348956534,1736891445847,-500.0,0.00011092,2]
[348956535,1736891445857,-500.0,0.00011092,2]
[348956537,1736891445867,-500.0,0.00011092,2]
[348956538,1736891445875,-671.07,0.00011092,2]
[348956539,1736891445885,-500.0,0.00011092,2]
[348956540,1736891445894,-500.0,0.00011092,2]
[348956541,1736891445903,-708.5,0.00011092,2]
[348956543,1736891445912,-640.19,0.00011092,2]
[348956545,1736891445921,-580.74,0.00011092,2]
[348956548,1736891445930,-500.0,0.00011092,2]
[348956551,1736891445939,-500.0,0.00011092,2]
[348956554,1736891445949,-500.0,0.00011092,2]
[348956556,1736891445957,-500.0,0.00011092,2]
[348956558,1736891445967,-510.98,0.00011092,2]
[348956560,1736891445976,-500.0,0.00011092,2]
[348956562,1736891445985,-500.0,0.00011092,2]
[348956564,1736891445994,-500.0,0.00011092,2]
[348956566,1736891446003,-500.0,0.00011092,2]
[348956568,1736891446012,-500.0,0.00011092,2]
[348956570,1736891446021,-916.49,0.00011092,2]
[348956572,1736891446030,-500.0,0.00011092,2]
[348956574,1736891446040,-500.0,0.00011092,2]
[348956576,1736891446048,-500.0,0.00011092,2]
[348956578,1736891446057,-500.0,0.00011092,2]
[348956580,1736891446066,-500.0,0.00011092,2]
[348956581,1736891446075,-512.52,0.00011092,2]
[348956583,1736891446084,-500.0,0.00011092,2]
[348956585,1736891446094,-500.0,0.00011092,2]
[348956587,1736891446103,-500.0,0.00011092,2]
[348956590,1736891446112,-500.0,0.00011092,2]
[348956592,1736891446121,-519.97,0.00011092,2]
[348956594,1736891446132,-500.0,0.00011092,2]
[348956596,1736891446142,-909.77,0.00011092,2]
[348956598,1736891446151,-500.0,0.00011092,2]
[348956600,1736891446161,-585.3,0.00011092,2]
[348956602,1736891446171,-500.0,0.00011092,2]
[348956604,1736891446180,-1478.34,0.00011092,2]
[348956606,1736891446189,-567.99,0.00011092,2]
[348956607,1736891446198,-618.91,0.00011092,2]
[348956608,1736891446207,-852.16,0.00011092,2]
[348956609,1736891446216,-500.0,0.00011092,2]
[348956610,1736891446225,-500.0,0.00011092,2]
[348956611,1736891446234,-500.0,0.00011092,2]
[348956612,1736891446243,-667.72,0.00011092,2]
[348956613,1736891446252,-633.47,0.00011092,2]
[348956614,1736891446261,-500.0,0.00011092,2]
[348956615,1736891446272,-701.58,0.00011092,2]
[348956616,1736891446281,-715.924744,0.00011092,2]
[348956617,1736891446291,-581.35270098,0.00011092,2]
[348956619,1736891446300,-699.872373,0.00011092,2]
[348956621,1736891446309,-829.68,0.00011092,2]
[348956623,1736891446318,-2453.68,0.00011092,2]
[348956625,1736891446327,-808.67,0.00011092,2]
[348956627,1736891446336,-1223.1,0.00011092,2]
[348956629,1736891446345,-1219.13,0.00011092,2]
[348956630,1736891446354,-740.59,0.00011092,2]
[348956632,1736891446363,-500.0,0.00011092,2]
[348956634,1736891446372,-678.97,0.00011092,2]
[348956636,1736891446385,-500.0,0.00011092,2]
[348956638,1736891446394,-625.23,0.00011092,2]
[348956640,1736891446403,-500.0,0.00011092,2]
[348956641,1736891446412,-2727.71,0.00011092,2]
[348956643,1736891446421,-1335.7,0.00011092,2]
[348956645,1736891446430,-914.29,0.00011093,2]
[348956647,1736891446439,-500.0,0.00011093,2]
[348956649,1736891446448,-840.68,0.00011093,2]
[348956651,1736891446457,-540.23,0.00011093,2]
[348956652,1736891446466,-500.0,0.00011093,2]
[348956654,1736891446475,-1105.15,0.00011093,2]
[348956655,1736891446484,-500.0,0.00011093,2]
[348956656,1736891446494,-500.0,0.00011093,2]
[348956657,1736891446503,-590.82,0.00011093,2]
[348956658,1736891446513,-500.0,0.00011093,2]
[348956659,1736891446522,-511.08,0.00011093,2]
[348956660,1736891446531,-500.0,0.00011093,2]
[348956661,1736891446539,-768.39,0.00011093,2]
[348956662,1736891446549,-1008.64,0.00011093,2]
[348956663,1736891446558,-907.53,0.00011093,2]
[348956664,1736891446567,-2126.01,0.00011093,2]
[348956665,1736891446577,-4406.64,0.00011093,2]
[348956666,1736891446586,-700.41,0.00011093,2]
[348956667,1736891446595,-507.86,0.00011093,2]
[348956668,1736891446604,-1530.52,0.00011093,2]
[348956669,1736891446613,-633.52,0.00011093,2]
[348956671,1736891446623,-864.94,0.00011093,2]
[348956673,1736891446632,-153.9258572,0.00011099,2]
[348956675,1736891446641,-150.28683774,0.00011197,2]
[348956677,1736891446651,-153.92585718,0.00011219,2]
[348956679,1736891446662,-500.0,0.00011232,2]
[348956681,1736891446671,-500.0,0.00011232,2]
[348956683,1736891446680,-1834.54924748,0.00011279,2]
[348956685,1736891446689,-715.52933,0.000113,2]
[348956687,1736891446700,-239.44473719,0.00011364,2]
[348956689,1736891446709,-1309.34,0.00011364,2]
[348956691,1736891446719,-4270.49,0.00011364,2]
[348956693,1736891446728,-510.42,0.00011364,2]
[348956695,1736891446737,-500.0,0.00011364,2]
[348956697,1736891446746,-697.63,0.00011364,2]
[348956699,1736891446755,-500.0,0.00011364,2]
[348956701,1736891446765,-500.0,0.00011364,2]
[348956702,1736891446774,-621.87,0.00011364,2]
[348956703,1736891446784,-500.0,0.00011364,2]
[348956704,1736891446793,-1141.61,0.00011364,2]
[348956705,1736891446802,-2482.98,0.00011364,2]
[348956706,1736891446811,-736.68,0.00011364,2]
[348956707,1736891446821,-500.0,0.00011364,2]
[348956708,1736891446830,-1131.64,0.00011364,2]
[348956709,1736891446839,-500.0,0.00011364,2]
[348956710,1736891446848,-906.71,0.00011364,2]
[348956711,1736891446857,-500.0,0.00011364,2]
[348956712,1736891446867,-677.37,0.00011365,2]
[348956713,1736891446876,-500.0,0.00011365,2]
[348956714,1736891446885,-530.18,0.00011365,2]
[348956715,1736891446894,-500.0,0.00011365,2]
[348956716,1736891446903,-500.0,0.00011365,2]
[348956717,1736891446913,-500.0,0.00011365,2]
[348956718,1736891446922,-500.0,0.00011365,2]
[348956719,1736891446932,-500.0,0.00011365,2]
[348956720,1736891446940,-500.0,0.00011365,2]
[348956721,1736891446950,-500.0,0.00011365,2]
[348956722,1736891446959,-500.0,0.00011365,2]
[348956723,1736891446969,-500.0,0.00011365,2]
[348956724,1736891446978,-500.0,0.00011365,2]
[348956725,1736891446987,-34.83432269,0.00011365,2]
[348956726,1736891447222,-465.16567731,0.00011365,2]
[348956727,1736891447234,-500.0,0.00011365,2]
[348956728,1736891447248,-500.0,0.00011365,2]
[348956729,1736891447258,-500.0,0.00011365,2]
[348956730,1736891447268,-500.0,0.00011365,2]
[348956731,1736891447278,-500.0,0.00011365,2]
[348956732,1736891447287,-500.0,0.00011365,2]
[348956733,1736891447297,-500.0,0.00011365,2]
[348956734,1736891447306,-529.66,0.00011365,2]
[348956735,1736891447315,-500.0,0.00011365,2]
[348956736,1736891447324,-500.0,0.00011365,2]
[348956737,1736891447335,-547.56,0.00011365,2]
[348956738,1736891447345,-500.0,0.00011365,2]
[348956739,1736891447354,-500.0,0.00011365,2]
[348956740,1736891447363,-500.0,0.00011365,2]
[348956741,1736891447372,-500.0,0.00011365,2]
[348956742,1736891447382,-500.0,0.00011365,2]
[348956743,1736891447395,-500.0,0.00011365,2]
[348956744,1736891447404,-500.0,0.00011365,2]
[348956745,1736891447413,-500.0,0.00011365,2]
[348956746,1736891447423,-500.0,0.00011365,2]
[348956747,1736891447432,-500.0,0.00011365,2]
[348956748,1736891447441,-500.0,0.00011365,2]
[348956749,1736891447450,-500.0,0.00011365,2]
[348956750,1736891447459,-502.94,0.00011365,2]
[348956751,1736891447468,-500.0,0.00011365,2]
[348956752,1736891447477,-637.12,0.00011365,2]
[348956753,1736891447486,-505.85,0.00011365,2]
[348956754,1736891447495,-676.9,0.00011365,2]
[348956755,1736891447504,-500.0,0.00011365,2]
[348956756,1736891447514,-500.0,0.00011365,2]
[348956757,1736891447523,-500.0,0.00011365,2]
[348956758,1736891447532,-500.0,0.00011365,2]
[348956759,1736891447541,-500.0,0.00011365,2]
[348956760,1736891447550,-500.0,0.00011365,2]
[348956761,1736891447559,-500.0,0.00011365,2]
[348956762,1736891447568,-500.0,0.00011365,2]
[348956763,1736891447577,-500.0,0.00011365,2]
[348956764,1736891447587,-500.0,0.00011365,2]
[348956765,1736891447596,-500.0,0.00011365,2]
[348956766,1736891447605,-500.0,0.00011365,2]
[348956767,1736891447614,-500.0,0.00011365,2]
[348956768,1736891447623,-572.46,0.00011365,2]
[348956769,1736891447632,-1307.13,0.00011365,2]
[348956770,1736891447641,-2442.36,0.00011365,2]
[348956771,1736891447650,-500.0,0.00011365,2]
[348956772,1736891447659,-1440.33,0.00011365,2]
[348956773,1736891447668,-500.0,0.00011365,2]
[348956774,1736891447677,-1025.22,0.00011365,2]
[348956775,1736891447686,-306.49429568,0.00011365,2]
[348956776,1736891447695,-500.0,0.00011365,2]
[348956777,1736891447704,-500.0,0.00011365,2]
[348956778,1736891447713,-646.08,0.00011365,2]
[348956779,1736891447723,-1615.88977802,0.00011365,2]
[348956780,1736891447760,-31.43022198,0.00011365,2]
[348956781,1736891447771,-1686.77,0.00011365,2]
[348956782,1736891447780,-575.89,0.00011365,2]
[348956783,1736891447789,-500.0,0.00011365,2]
[348956784,1736891447798,-500.0,0.00011365,2]
[348956785,1736891447808,-500.0,0.00011365,2]
[348956786,1736891447818,-654.19,0.00011365,2]
[348956787,1736891447829,-500.0,0.00011365,2]
[348956788,1736891447839,-1923.99,0.00011365,2]
[348956789,1736891447849,-500.0,0.00011365,2]
[348956790,1736891447859,-500.0,0.00011365,2]
[348956791,1736891447869,-500.0,0.00011365,2]
[348956792,1736891447878,-500.0,0.00011365,2]
[348956793,1736891447886,-1054.58,0.00011365,2]
[348956794,1736891447896,-500.0,0.00011365,2]
[348956795,1736891447906,-618.28,0.00011365,2]
[348956796,1736891447919,-500.0,0.00011365,2]
[348956797,1736891447929,-536.29,0.00011365,2]
[348956798,1736891447940,-500.0,0.00011365,2]
[348956799,1736891447950,-615.37,0.00011365,2]
[348956800,1736891447959,-500.0,0.00011365,2]
[348956801,1736891447969,-644.34,0.00011365,2]
[348956802,1736891447977,-500.0,0.00011365,2]
[348956803,1736891447986,-500.0,0.00011366,2]
[348956804,1736891447995,-500.0,0.00011366,2]
[348956805,1736891448005,-500.0,0.00011366,2]
[348956806,1736891448014,-537.48,0.00011366,2]
[348956807,1736891448023,-500.0,0.00011366,2]
[348956808,1736891448033,-500.0,0.00011366,2]
[348956809,1736891448042,-671.07,0.00011366,2]
[348956810,1736891448051,-500.0,0.00011366,2]
[348956811,1736891448060,-500.0,0.00011366,2]
[348956812,1736891448069,-708.5,0.00011366,2]
[348956813,1736891448078,-640.19,0.00011366,2]
[348956814,1736891448087,-580.74,0.00011366,2]
[348956815,1736891448098,-500.0,0.00011366,2]
[348956816,1736891448107,-500.0,0.00011366,2]
[348956817,1736891448116,-500.0,0.00011366,2]
[348956818,1736891448127,-510.98,0.00011366,2]
[348956819,1736891448136,-500.0,0.00011366,2]
[348956820,1736891448146,-500.0,0.00011366,2]
[348956821,1736891448156,-500.0,0.00011366,2]
[348956822,1736891448165,-500.0,0.00011366,2]
[348956823,1736891448174,-500.0,0.00011366,2]
[348956824,1736891448183,-916.49,0.00011366,2]
[348956825,1736891448192,-500.0,0.00011366,2]
[348956826,1736891448205,-500.0,0.00011366,2]
[348956827,1736891448214,-500.0,0.00011366,2]
[348956828,1736891448223,-512.52,0.00011366,2]
[348956829,1736891448233,-500.0,0.00011366,2]
[348956830,1736891448243,-500.0,0.00011366,2]
[348956831,1736891448457,-500.0,0.00011366,2]
[348956832,1736891448467,-500.0,0.00011366,2]
[348956833,1736891448476,-519.97,0.00011366,2]
[348956834,1736891448485,-500.0,0.00011366,2]
[348956835,1736891448494,-909.77,0.00011366,2]
[348956836,1736891448503,-585.3,0.00011366,2]
[348956837,1736891448513,-450.81144655,0.00011366,2]
[348956838,1736891448522,-1478.34,0.00011366,2]
[348956839,1736891448531,-567.99,0.00011366,2]
[348956840,1736891448540,-618.91,0.00011366,2]
[348956841,1736891448549,-852.16,0.00011366,2]
[348956842,1736891448559,-500.0,0.00011366,2]
[348956843,1736891448568,-500.0,0.00011366,2]
[348956844,1736891448577,-500.0,0.00011366,2]
[348956845,1736891448586,-667.72,0.00011366,2]
[348956846,1736891448595,-633.47,0.00011366,2]
[348956847,1736891448604,-701.58,0.00011366,2]
[348956848,1736891448613,-715.924744,0.00011366,2]
[348956849,1736891448622,-699.872373,0.00011366,2]
[348956850,1736891448631,-829.68,0.00011366,2]
[348956851,1736891448641,-2453.68,0.00011366,2]
[348956852,1736891448650,-808.67,0.00011366,2]
[348956853,1736891448660,-1223.1,0.00011366,2]
[348956854,1736891448669,-1219.13,0.00011366,2]
[348956855,1736891448678,-740.59,0.00011366,2]
[348956856,1736891448687,-500.0,0.00011366,2]
[348956857,1736891448697,-678.97,0.00011366,2]
[348956858,1736891448706,-500.0,0.00011366,2]
[348956859,1736891448715,-625.23,0.00011366,2]
[348956860,1736891448724,-500.0,0.00011366,2]
[348956861,1736891448733,-2727.71,0.00011366,2]
[348956862,1736891448742,-1335.7,0.00011366,2]
[348956863,1736891448752,-472.23005079,0.00011366,2]
[348956864,1736891448762,-914.29,0.00011367,2]
[348956865,1736891448771,-500.0,0.00011367,2]
[348956866,1736891448780,-840.68,0.00011367,2]
[348956867,1736891448790,-540.23,0.00011367,2]
[348956868,1736891448799,-1105.15,0.00011367,2]
[348956869,1736891448808,-500.0,0.00011367,2]
[348956870,1736891448817,-500.0,0.00011367,2]
[348956871,1736891448827,-590.82,0.00011367,2]
[348956872,1736891448836,-500.0,0.00011367,2]
[348956873,1736891448845,-511.08,0.00011367,2]
[348956874,1736891448854,-500.0,0.00011367,2]
[348956875,1736891448864,-768.39,0.00011367,2]
[348956876,1736891448873,-1008.64,0.00011367,2]
[348956877,1736891448882,-907.53,0.00011367,2]
[348956878,1736891448891,-2126.01,0.00011367,2]
[348956879,1736891448901,-4406.64,0.00011367,2]
[348956880,1736891448911,-700.41,0.00011367,2]
[348956881,1736891448920,-507.86,0.00011367,2]
[348956882,1736891448929,-1530.52,0.00011367,2]
[348956883,1736891448939,-633.52,0.00011367,2]
[348956884,1736891448948,-864.94,0.00011367,2]
[348956885,1736891448957,-150.28683774,0.00011448,2]
[348956886,1736891448966,-1268.0,0.00011502,2]
[348956887,1736891448975,-2016.0,0.00011502,2]
[348956888,1736891448984,-589.369,0.00011502,2]
[348956889,1736891448993,-638.196,0.00011502,2]
[348956890,1736891449002,-151.802,0.00011502,2]
[348956891,1736891449012,-1862.0,0.00011502,2]
[348956892,1736891449021,-915.0,0.00011502,2]
[348956893,1736891449030,-820.0,0.00011502,2]
[348956894,1736891449039,-1259.0,0.00011502,2]
[348956895,1736891449048,-2944.0,0.00011502,2]
[348956896,1736891449057,-537.0,0.00011502,2]
[348956897,1736891449066,-3978.0,0.00011502,2]
[348956898,1736891449076,-3896.0,0.00011502,2]
[348956899,1736891449085,-150.0,0.00011502,2]
[348956900,1736891449094,-1104.0,0.00011502,2]
[348956901,1736891449103,-153.92585718,0.00011504,2]
[348956902,1736891449112,-2751.0,0.00011507,2]
[348956903,1736891449122,-10741.9186,0.00011539,2]
[348956904,1736891449131,-3604.82,0.00011637,2]
[348956905,1736891449140,-184.404,0.00011637,2]
[348956906,1736891449150,-1309.34,0.00011638,2]
[348956907,1736891449159,-4270.49,0.00011638,2]
[348956908,1736891449168,-510.42,0.00011638,2]
[348956909,1736891449177,-500.0,0.00011638,2]
[348956910,1736891449187,-697.63,0.00011638,2]
[348956911,1736891449197,-351.5,0.00011638,2]
[348956912,1736891449206,-500.0,0.00011638,2]
[348956913,1736891449215,-621.87,0.00011638,2]
[348956914,1736891449224,-500.0,0.00011638,2]
[348956915,1736891449234,-1141.61,0.00011638,2]
[348956916,1736891449242,-2482.98,0.00011638,2]
[348956917,1736891449252,-736.68,0.00011638,2]
[348956918,1736891449261,-500.0,0.00011638,2]
[348956919,1736891449270,-1131.64,0.00011638,2]
[348956920,1736891449279,-500.0,0.00011638,2]
[348956921,1736891449289,-906.71,0.00011638,2]
[348956922,1736891449298,-500.0,0.00011638,2]
[348956923,1736891449307,-677.37,0.00011639,2]
[348956924,1736891449317,-500.0,0.00011639,2]
[348956925,1736891449326,-530.18,0.00011639,2]
[348956926,1736891449335,-500.0,0.00011639,2]
[348956927,1736891449344,-500.0,0.00011639,2]
[348956928,1736891449353,-500.0,0.00011639,2]
[348956929,1736891449363,-500.0,0.00011639,2]
[348956930,1736891449372,-500.0,0.00011639,2]
[348956931,1736891449383,-503.85,0.00011639,2]
[348956932,1736891449393,-500.0,0.00011639,2]
[348956933,1736891449403,-500.0,0.00011639,2]
[348956934,1736891449412,-500.0,0.00011639,2]
[348956935,1736891449423,-500.0,0.00011639,2]
[348956936,1736891449433,-500.0,0.00011639,2]
[348956937,1736891449442,-500.0,0.00011639,2]
[348956938,1736891449452,-500.0,0.00011639,2]
[348956939,1736891449461,-500.0,0.00011639,2]
[348956940,1736891449471,-500.0,0.00011639,2]
[348956941,1736891449480,-500.0,0.00011639,2]
[348956942,1736891449489,-500.0,0.00011639,2]
[348956943,1736891449499,-500.0,0.00011639,2]
[348956944,1736891449508,-529.66,0.00011639,2]
[348956945,1736891449517,-500.0,0.00011639,2]
[348956946,1736891449526,-500.0,0.00011639,2]
[348956947,1736891449537,-547.56,0.00011639,2]
[348956948,1736891449546,-500.0,0.00011639,2]
[348956949,1736891449556,-500.0,0.00011639,2]
[348956950,1736891449565,-500.0,0.00011639,2]
[348956951,1736891449574,-500.0,0.00011639,2]
[348956952,1736891449583,-500.0,0.00011639,2]
[348956953,1736891449593,-500.0,0.00011639,2]
[348956954,1736891449602,-500.0,0.00011639,2]
[348956955,1736891449612,-500.0,0.00011639,2]
[348956956,1736891449621,-500.0,0.00011639,2]
[348956957,1736891449631,-500.0,0.00011639,2]
[348956958,1736891449640,-500.0,0.00011639,2]
[348956959,1736891449649,-500.0,0.00011639,2]
[348956960,1736891449659,-502.94,0.00011639,2]
[348956961,1736891449668,-500.0,0.00011639,2]
[348956962,1736891449679,-505.85,0.00011639,2]
[348956963,1736891449688,-676.9,0.00011639,2]
[348956964,1736891449698,-500.0,0.00011639,2]
[348956965,1736891449707,-500.0,0.00011639,2]
[348956966,1736891449716,-500.0,0.00011639,2]
[348956967,1736891449726,-428.27,0.00011639,2]
[348956968,1736891449735,-500.0,0.00011639,2]
[348956969,1736891449744,-500.0,0.00011639,2]
[348956970,1736891449753,-500.0,0.00011639,2]
[348956971,1736891449762,-500.0,0.00011639,2]
[348956972,1736891449771,-500.0,0.00011639,2]
[348956973,1736891449780,-572.46,0.00011639,2]
[348956974,1736891449790,-1307.13,0.00011639,2]
[348956975,1736891449799,-2442.36,0.00011639,2]
[348956976,1736891449809,-500.0,0.00011639,2]
[348956977,1736891449818,-1440.33,0.00011639,2]
[348956978,1736891449827,-500.0,0.00011639,2]
[348956979,1736891449836,-1025.22,0.00011639,2]
[348956980,1736891449845,-500.0,0.00011639,2]
[348956981,1736891449854,-500.0,0.00011639,2]
[348956982,1736891449863,-646.08,0.00011639,2]
[348956983,1736891449873,-1647.32,0.00011639,2]
[348956984,1736891449882,-1686.77,0.00011639,2]
[348956985,1736891449894,-575.89,0.00011639,2]
[348956986,1736891449903,-342.14966296,0.00011639,2]
[348956987,1736891449912,-500.0,0.00011639,2]
[348956988,1736891449921,-500.0,0.00011639,2]
[348956989,1736891449931,-654.19,0.00011639,2]
[348956990,1736891449939,-500.0,0.00011639,2]
[348956991,1736891449948,-1923.99,0.00011639,2]
[348956992,1736891449957,-500.0,0.00011639,2]
[348956993,1736891449966,-500.0,0.00011639,2]
[348956994,1736891449976,-500.0,0.00011639,2]
[348956995,1736891449985,-500.0,0.00011639,2]
[348956996,1736891449995,-1054.58,0.00011639,2]
[348956997,1736891450004,-618.28,0.00011639,2]
[348956998,1736891450014,-500.0,0.00011639,2]
[348956999,1736891450024,-536.29,0.00011639,2]
[348957000,1736891450036,-500.0,0.00011639,2]
[348957001,1736891450045,-500.0,0.00011639,2]
[348957002,1736891450055,-644.34,0.00011639,2]
[348957003,1736891450066,-500.0,0.00011639,2]
[348957004,1736891450075,-500.0,0.0001164,2]
[348957005,1736891450084,-500.0,0.0001164,2]
[348957006,1736891450093,-500.0,0.0001164,2]
[348957007,1736891450102,-537.48,0.0001164,2]
[348957008,1736891450112,-500.0,0.0001164,2]
[348957009,1736891450122,-500.0,0.0001164,2]
[348957010,1736891450132,-671.07,0.0001164,2]
[348957011,1736891450141,-500.0,0.0001164,2]
[348957012,1736891450152,-500.0,0.0001164,2]
[348957013,1736891450162,-708.5,0.0001164,2]
[348957014,1736891450171,-640.19,0.0001164,2]
[348957015,1736891450181,-580.74,0.0001164,2]
[348957016,1736891450190,-500.0,0.0001164,2]
[348957017,1736891450199,-389.90717949,0.0001164,2]
[348957018,1736891450208,-500.0,0.0001164,2]
[348957019,1736891450217,-510.98,0.0001164,2]
[348957020,1736891450227,-500.0,0.0001164,2]
[348957021,1736891450235,-380.88182169,0.0001164,2]
[348957022,1736891450245,-500.0,0.0001164,2]
[348957023,1736891450254,-500.0,0.0001164,2]
[348957024,1736891450263,-916.49,0.0001164,2]
[348957025,1736891450272,-500.0,0.0001164,2]
[348957026,1736891450281,-197.84,0.0001164,2]
[348957027,1736891450291,-500.0,0.0001164,2]
[348957028,1736891450300,-512.52,0.0001164,2]
[348957029,1736891450310,-500.0,0.0001164,2]
[348957030,1736891450319,-500.0,0.0001164,2]
[348957031,1736891450328,-500.0,0.0001164,2]
[348957032,1736891450337,-519.97,0.0001164,2]
[348957033,1736891450346,-909.77,0.0001164,2]
[348957034,1736891450356,-585.3,0.0001164,2]
[348957035,1736891450365,-1478.34,0.0001164,2]
[348957036,1736891450374,-567.99,0.0001164,2]
[348957037,1736891450389,-618.91,0.0001164,2]
[348957038,1736891450398,-852.16,0.0001164,2]
[348957039,1736891450408,-322.17,0.0001164,2]
[348957040,1736891450417,-500.0,0.0001164,2]
[348957041,1736891450426,-500.0,0.0001164,2]
[348957042,1736891450435,-667.72,0.0001164,2]
[348957043,1736891450444,-633.47,0.0001164,2]
[348957044,1736891450454,-715.924744,0.0001164,2]
[348957045,1736891450463,-699.872373,0.0001164,2]
[348957046,1736891450472,-829.68,0.0001164,2]
[348957047,1736891450481,-2453.68,0.0001164,2]
[348957048,1736891450491,-808.67,0.0001164,2]
[348957049,1736891450500,-1223.1,0.0001164,2]
[348957050,1736891450510,-1219.13,0.0001164,2]
[348957051,1736891450519,-740.59,0.0001164,2]
[348957052,1736891450529,-500.0,0.0001164,2]
[348957053,1736891450538,-678.97,0.0001164,2]
[348957054,1736891450548,-500.0,0.0001164,2]
[348957055,1736891450557,-625.23,0.0001164,2]
[348957056,1736891450567,-500.0,0.0001164,2]
[348957057,1736891450576,-2727.71,0.0001164,2]
[348957058,1736891450586,-914.29,0.00011641,2]
[348957059,1736891450595,-500.0,0.00011641,2]
[348957060,1736891450605,-840.68,0.00011641,2]
[348957061,1736891450614,-540.23,0.00011641,2]
[348957062,1736891450624,-1105.15,0.00011641,2]
[348957063,1736891450633,-500.0,0.00011641,2]
[348957064,1736891450642,-500.0,0.00011641,2]
[348957065,1736891450653,-590.82,0.00011641,2]
[348957066,1736891450662,-500.0,0.00011641,2]
[348957067,1736891450671,-511.08,0.00011641,2]
[348957068,1736891450681,-500.0,0.00011641,2]
[348957069,1736891450691,-768.39,0.00011641,2]
[348957070,1736891450701,-1008.64,0.00011641,2]
[348957071,1736891450710,-907.53,0.00011641,2]
[348957072,1736891450719,-2126.01,0.00011641,2]
[348957073,1736891450729,-4406.64,0.00011641,2]
[348957074,1736891450738,-700.41,0.00011641,2]
[348957075,1736891450747,-507.86,0.00011641,2]